fUST/lending_fUST_20250610
["ID","MTS","AMOUNT","RATE_DAILY","PERIOD"]
[365142244,1749489039567,-1785.03,0.00021369,4]
[365142246,1749489039577,-2920.14,0.00021369,4]
[365142248,1749489039587,-460.0,0.00021369,4]
[365142249,1749489039597,-460.0,0.00021369,4]
[365142250,1749489039606,-2180.45,0.00021369,4]
[365142251,1749489039616,-460.0,0.00021369,4]
[365142252,1749489039626,-385.92001821,0.00021369,4]
[365142253,1749489039636,-460.0,0.00021369,4]
[365142254,1749489039645,-6853.14,0.00021369,4]
[365142255,1749489039656,-460.0,0.00021369,4]
[365142256,1749489039669,-460.0,0.00021369,4]
[365142257,1749489039679,-564.14,0.00021369,4]
[365142258,1749489039689,-675.12,0.00021369,4]
[365142259,1749489039699,-1578.23,0.00021369,4]
[365142260,1749489039709,-573.48,0.00021369,4]
[365142261,1749489039719,-460.0,0.00021369,4]
[365142262,1749489039728,-689.45,0.00021493,2]
[365142263,1749489039739,-207.4,0.00021518,2]
[365142264,1749489039748,-181.89148489,0.00021543,2]
[365142265,1749489039758,-765.58,0.00021632,3]
[365142266,1749489039767,-527.380506,0.00021641,2]
[365142267,1749489039776,-527.380506,0.00021641,2]
[365142268,1749489039785,-170.086079,0.00021641,2]
[365142269,1749489039795,-170.086079,0.00021641,2]
[365142270,1749489039805,-869.86,0.00021642,4]
[365142271,1749489039814,-500.0,0.00021642,2]
[365142272,1749489039823,-500.0,0.00021642,2]
[365142273,1749489039832,-500.0,0.00021642,2]
[365142274,1749489039842,-500.0,0.00021642,2]
[365142275,1749489039851,-500.0,0.00021642,2]
[365142276,1749489039860,-500.0,0.00021642,2]
[365142277,1749489039870,-500.0,0.00021642,2]
[365142278,1749489039879,-307.31944238,0.00021642,2]
[365142279,1749489039889,-500.0,0.00021642,2]
[365142280,1749489039898,-169.95594037,0.00021642,2]
[365142281,1749489039908,-500.0,0.00021642,2]
[365142282,1749489039917,-500.0,0.00021642,2]
[365142283,1749489039927,-151.0,0.00021643,2]
[365142284,1749489039936,-151.0,0.00021643,2]
[365142285,1749489039946,-151.0,0.00021643,2]
[365142286,1749489039955,-274.999119,0.00021643,2]
[365142287,1749489039965,-324.393913,0.00021643,2]
[365142288,1749489039975,-324.393913,0.00021643,2]
[365142289,1749489039985,-527.380506,0.00021643,2]
[365142290,1749489039995,-527.380506,0.00021643,2]
[365142291,1749489040005,-170.086079,0.00021643,2]
[365142292,1749489040015,-170.086079,0.00021643,2]
[365142293,1749489040026,-151.0,0.00021643,2]
[365142294,1749489040036,-151.0,0.00021643,2]
[365142295,1749489040049,-688.29,0.00021643,4]
[365142296,1749489040060,-151.0,0.00021643,2]
[365142297,1749489040072,-460.0,0.00021643,4]
[365142298,1749489040082,-460.0,0.00021643,4]
[365142299,1749489040093,-151.0,0.00021643,2]
[365142300,1749489040104,-151.0,0.00021643,2]
[365142301,1749489040115,-225.760871,0.00021643,2]
[365142302,1749489040125,-225.760871,0.00021643,2]
[365142303,1749489040134,-460.0,0.00021643,4]
[365142304,1749489040144,-151.0,0.00021643,2]
[365142305,1749489040154,-460.0,0.00021643,4]
[365142306,1749489040164,-151.389825,0.00021643,2]
[365142307,1749489040172,-260.393678,0.00021643,2]
[365142308,1749489040182,-260.393678,0.00021643,2]
[365142309,1749489040192,-260.393678,0.00021643,2]
[365142310,1749489040201,-260.393678,0.00021643,2]
[365142311,1749489040210,-460.0,0.00021643,2]
[365142312,1749489040219,-151.0,0.00021643,2]
[365142313,1749489040228,-151.0,0.00021643,2]
[365142314,1749489040238,-460.0,0.00021643,4]
[365142315,1749489040247,-363.350505,0.00021643,2]
[365142316,1749489040256,-363.350505,0.00021643,2]
[365142317,1749489040266,-363.350505,0.00021643,2]
[365142318,1749489040276,-363.350505,0.00021643,2]
[365142319,1749489040286,-460.0,0.00021643,4]
[365142320,1749489040296,-151.0,0.00021643,2]
[365142322,1749489040308,-151.0,0.00021643,2]
[365142324,1749489040317,-151.600532,0.00021643,2]
[365142325,1749489040326,-1289.768875,0.00021643,2]
[365142326,1749489040335,-1289.768875,0.00021643,2]
[365142327,1749489040439,-1610.506364,0.00021643,2]
[365142328,1749489040449,-1289.768875,0.00021643,2]
[365142329,1749489040459,-1289.768875,0.00021643,2]
[365142330,1749489040468,-1610.506364,0.00021643,2]
[365142332,1749489040478,-460.0,0.00021643,4]
[365142334,1749489040487,-606.60868877,0.00021643,4]
[365142336,1749489040496,-460.0,0.00021643,4]
[365142337,1749489040506,-151.0,0.00021643,2]
[365142338,1749489040515,-460.0,0.00021643,4]
[365142339,1749489040523,-877.19,0.00021643,4]
[365142340,1749489040533,-151.0,0.00021643,2]
[365142341,1749489040542,-151.0,0.00021643,2]
[365142342,1749489040554,-1328.58,0.00021643,4]
[365142343,1749489040563,-183.660739,0.00021643,2]
[365142344,1749489040572,-183.660739,0.00021643,2]
[365142345,1749489040581,-183.660739,0.00021643,2]
[365142346,1749489040590,-183.660739,0.00021643,2]
[365142347,1749489040600,-511.55,0.00021643,4]
[365142348,1749489040609,-151.0,0.00021643,2]
[365142349,1749489040618,-460.0,0.00021643,4]
[365142351,1749489040627,-2000.09,0.00021643,4]
[365142353,1749489040636,-151.0,0.00021643,2]
[365142355,1749489040646,-151.0,0.00021643,2]
[365142357,1749489040656,-151.0,0.00021643,2]
[365142359,1749489040666,-460.0,0.00021643,4]
[365142360,1749489040676,-1192.29,0.00021643,4]
[365142362,1749489040687,-673.73,0.00021643,4]
[365142365,1749489040697,-151.0,0.00021643,2]
[365142367,1749489040707,-151.0,0.00021643,2]
[365142368,1749489040717,-635.09,0.00021643,4]
[365142370,1749489040726,-151.0,0.00021643,2]
[365142372,1749489040736,-460.0,0.00021643,4]
[365142374,1749489040747,-469.05,0.00021643,4]
[365142376,1749489040757,-460.0,0.00021643,4]
[365142378,1749489040765,-848.24,0.00021643,4]
[365142380,1749489040775,-950.66,0.00021643,4]
[365142382,1749489040784,-494.39,0.00021643,4]
[365142384,1749489040794,-460.0,0.00021643,4]
[365142386,1749489040805,-1235.43,0.00021643,4]
[365142388,1749489040814,-460.0,0.00021643,4]
[365142390,1749489040823,-460.0,0.00021643,4]
[365142392,1749489040833,-1049.95,0.00021643,4]
[365142394,1749489040842,-151.0,0.00021643,2]
[365142396,1749489040851,-460.0,0.00021643,4]
[365142399,1749489040861,-460.0,0.00021643,4]
[365142401,1749489040871,-744.9,0.00021643,4]
[365142402,1749489040880,-460.0,0.00021643,4]
[365142404,1749489040891,-460.0,0.00021643,4]
[365142407,1749489040902,-460.0,0.00021643,4]
[365142409,1749489040911,-1785.03,0.00021643,4]
[365142410,1749489040920,-2920.14,0.00021643,4]
[365142412,1749489040929,-151.0,0.00021643,2]
[365142414,1749489040939,-460.0,0.00021643,4]
[365142416,1749489040948,-151.0,0.00021643,2]
[365142418,1749489040958,-460.0,0.00021643,4]
[365142420,1749489040968,-2180.45,0.00021643,4]
[365142422,1749489040977,-460.0,0.00021643,4]
[365142424,1749489040987,-460.0,0.00021643,4]
[365142426,1749489040996,-6853.14,0.00021643,4]
[365142428,1749489041005,-374.11691583,0.00021643,4]
[365142430,1749489041015,-460.0,0.00021643,4]
[365142432,1749489041025,-564.14,0.00021643,4]
[365142434,1749489041035,-1578.23,0.00021643,4]
[365142436,1749489041044,-675.12,0.00021643,4]
[365142438,1749489041056,-573.48,0.00021643,4]
[365142440,1749489041066,-460.0,0.00021643,4]
[365142442,1749489041076,-171.43816065,0.00021709,2]
[365142445,1749489041086,-225.760871,0.000219,2]
[365142447,1749489041096,-225.760871,0.000219,2]
[365142449,1749489041106,-151.0,0.000219,2]
[365142451,1749489041115,-1610.506364,0.000219,2]
[365142453,1749489041125,-1610.506364,0.000219,2]
[365142454,1749489041134,-3918.51708664,0.000219,2]
[365142456,1749489041144,-277.17236523,0.000219,6]
[365142458,1749489041153,-151.0,0.00021907,2]
[365142460,1749489041162,-151.0,0.00021907,2]
[365142462,1749489041171,-151.0,0.00021907,2]
[365142464,1749489041181,-151.0,0.00021915,2]
[365142466,1749489041190,-151.0,0.00021916,2]
[365142468,1749489041199,-151.734754,0.00021916,2]
[365142470,1749489041209,-151.0,0.00021916,2]
[365142472,1749489041218,-151.0,0.00021916,2]
[365142474,1749489041227,-151.0,0.00021916,2]
[365142476,1749489041236,-324.393913,0.00021916,2]
[365142477,1749489041246,-324.393913,0.00021916,2]
[365142478,1749489041255,-869.86,0.00021916,4]
[365142479,1749489041265,-151.0,0.00021916,2]
[365142480,1749489041275,-151.0,0.00021917,2]
[365142481,1749489041284,-151.0,0.00021917,2]
[365142482,1749489041293,-151.0,0.00021917,2]
[365142483,1749489041304,-151.0,0.00021917,2]
[365142484,1749489041313,-527.380506,0.00021917,2]
[365142485,1749489041322,-527.380506,0.00021917,2]
[365142486,1749489041332,-527.380506,0.00021917,2]
[365142487,1749489041341,-527.380506,0.00021917,2]
[365142488,1749489041351,-170.086079,0.00021917,2]
[365142489,1749489041360,-170.086079,0.00021917,2]
[365142490,1749489041370,-170.086079,0.00021917,2]
[365142492,1749489041380,-170.086071,0.00021917,2]
[365142494,1749489041391,-151.0,0.00021917,2]
[365142495,1749489041401,-151.0,0.00021917,2]
[365142496,1749489041411,-151.0,0.00021917,2]
[365142498,1749489041420,-151.0,0.00021917,2]
[365142500,1749489041430,-273.235739,0.00021917,2]
[365142502,1749489041439,-151.0,0.00021917,2]
[365142504,1749489041449,-151.0,0.00021917,2]
[365142506,1749489041458,-151.0,0.00021917,2]
[365142508,1749489041468,-199.403518,0.00021917,2]
[365142510,1749489041478,-199.403518,0.00021917,2]
[365142511,1749489041487,-151.0,0.00021917,2]
[365142513,1749489041497,-151.0,0.00021917,2]
[365142515,1749489041506,-688.29,0.00021917,4]
[365142517,1749489041515,-460.0,0.00021917,4]
[365142519,1749489041524,-460.0,0.00021917,4]
[365142521,1749489041534,-151.0,0.00021917,2]
[365142523,1749489041543,-151.0,0.00021917,2]
[365142525,1749489041554,-151.0,0.00021917,2]
[365142527,1749489041564,-151.0,0.00021917,2]
[365142529,1749489041574,-225.760871,0.00021917,2]
[365142531,1749489041583,-225.760871,0.00021917,2]
[365142533,1749489041593,-460.0,0.00021917,4]
[365142535,1749489041602,-460.0,0.00021917,4]
[365142537,1749489041611,-151.0,0.00021917,2]
[365142539,1749489041620,-151.0,0.00021917,2]
[365142541,1749489041630,-260.393678,0.00021917,2]
[365142543,1749489041639,-260.393678,0.00021917,2]
[365142545,1749489041648,-460.0,0.00021917,2]
[365142547,1749489041657,-151.0,0.00021917,2]
[365142549,1749489041670,-151.0,0.00021917,2]
[365142551,1749489041679,-151.0,0.00021917,2]
[365142553,1749489041690,-151.0,0.00021917,2]
[365142556,1749489041701,-176.10486,0.00021917,2]
[365142558,1749489041711,-460.0,0.00021917,4]
[365142560,1749489041720,-363.350505,0.00021917,2]
[365142562,1749489041729,-363.350505,0.00021917,2]
[365142564,1749489041739,-380.0,0.00021917,4]
[365142566,1749489041749,-151.0,0.00021917,2]
[365142567,1749489041758,-151.0,0.00021917,2]
[365142569,1749489041767,-151.0,0.00021917,2]
[365142571,1749489041777,-151.0,0.00021917,2]
[365142573,1749489041786,-1289.768875,0.00021917,2]
[365142575,1749489041795,-1610.506364,0.00021917,2]
[365142577,1749489041805,-1289.768875,0.00021917,2]
[365142579,1749489041814,-1610.506364,0.00021917,2]
[365142581,1749489041824,-460.0,0.00021917,4]
[365142583,1749489041834,-460.0,0.00021917,4]
[365142585,1749489041843,-151.0,0.00021917,2]
[365142587,1749489041852,-460.0,0.00021917,4]
[365142589,1749489041861,-877.19,0.00021917,4]
[365142591,1749489041871,-151.0,0.00021917,2]
[365142593,1749489041881,-151.0,0.00021917,2]
[365142595,1749489041890,-547.64943933,0.00021917,4]
[365142607,1749489042011,-780.93056067,0.00021917,4]
[365142609,1749489042021,-183.660739,0.00021917,2]
[365142611,1749489042031,-183.660739,0.00021917,2]
[365142613,1749489042041,-511.55,0.00021917,4]
[365142615,1749489042051,-151.0,0.00021917,2]
[365142617,1749489042061,-151.0,0.00021917,2]
[365142619,1749489042071,-460.0,0.00021917,4]
[365142621,1749489042080,-346.75976341,0.00021917,4]
[365142637,1749489042234,-460.0,0.00021095,4]
[365142639,1749489042246,-151.0,0.00021643,2]
[365142641,1749489042257,-1653.33023659,0.00021917,4]
[365142643,1749489042267,-151.0,0.00021917,2]
[365142645,1749489042277,-151.0,0.00021917,2]
[365142647,1749489042287,-460.0,0.00021917,4]
[365142649,1749489042297,-1192.29,0.00021917,4]
[365142651,1749489042312,-673.73,0.00021917,4]
[365142653,1749489042322,-151.0,0.00021917,2]
[365142655,1749489042331,-635.09,0.00021917,4]
[365142657,1749489042340,-460.0,0.00021917,4]
[365142659,1749489042350,-469.05,0.00021917,4]
[365142661,1749489042360,-460.0,0.00021917,4]
[365142663,1749489042370,-33.45699812,0.00021917,4]
[365142780,1749489043765,-460.0,0.00021095,4]
[365142782,1749489043775,-460.0,0.00021369,4]
[365142784,1749489043786,-814.78300188,0.00021917,4]
[365142786,1749489043796,-950.66,0.00021917,4]
[365142788,1749489043807,-494.39,0.00021917,4]
[365142790,1749489043816,-460.0,0.00021917,4]
[365142792,1749489043826,-1235.43,0.00021917,4]
[365142794,1749489043837,-460.0,0.00021917,4]
[365142798,1749489043847,-460.0,0.00021917,4]
[365142800,1749489043858,-1049.95,0.00021917,4]
[365142802,1749489043867,-460.0,0.00021917,4]
[365142804,1749489043877,-151.0,0.00021917,2]
[365142806,1749489043886,-460.0,0.00021917,4]
[365142807,1749489043895,-744.9,0.00021917,4]
[365142810,1749489043905,-460.0,0.00021917,4]
[365142812,1749489043915,-380.0,0.00021917,4]
[365142814,1749489043924,-460.0,0.00021917,4]
[365142816,1749489043934,-1785.03,0.00021917,4]
[365142818,1749489043944,-2920.14,0.00021917,4]
[365142820,1749489043953,-151.0,0.00021917,2]
[365142822,1749489043962,-151.0,0.00021917,2]
[365142824,1749489043972,-460.0,0.00021917,4]
[365142826,1749489043981,-163.644031,0.00021917,2]
[365142829,1749489043991,-460.0,0.00021917,4]
[365142830,1749489044001,-2180.45,0.00021917,4]
[365142832,1749489044011,-460.0,0.00021917,4]
[365142834,1749489044020,-313.56106512,0.00021917,4]
[365143141,1749489046928,-500.0,0.00021642,2]
[365143143,1749489046938,-458.39010549,0.00021642,2]
[365143682,1749489134150,5684.86202957,0.0002,60]
[365143686,1749489298280,165.0,0.00016438,3]
[365143694,1749489861863,165.600522,0.00013699,2]
[365143778,1749490231962,-177.831983,0.00018329,2]
[365143780,1749490231973,-300.0,0.00018335,2]
[365143782,1749490231982,-7493.78003198,0.00018336,2]
[365143784,1749490231992,-5000.0,0.00018336,2]
[365143786,1749490232002,-5000.0,0.00018336,2]
[365143788,1749490232012,-824.7612103,0.00018706,2]
[365143789,1749490232022,-201.06837048,0.000188,2]
[365143798,1749490232166,-150.0,0.000189,2]
[365143800,1749490232178,-173.288882,0.00019178,2]
[365143801,1749490232188,-207.0,0.00019178,3]
[365143802,1749490232198,-701.03133236,0.00019332,2]
[365143803,1749490232212,-17488.31443142,0.00019333,2]
[365143804,1749490232223,-171.12518079,0.00019399,2]
[365143805,1749490232234,-4600.0,0.000195,2]
[365143806,1749490232245,-181.8290686,0.00019865,2]
[365143807,1749490232257,-366.09641937,0.000199,2]
[365143808,1749490232267,-2822.9577732,0.00020068,2]
[365143809,1749490232278,-10096.4747137,0.00020068,2]
[365143810,1749490232288,-366.09641915,0.00020072,2]
[365143811,1749490232298,-215.336,0.00020223,2]
[365143812,1749490232308,-366.09641915,0.00020245,2]
[365143813,1749490232318,-366.09641915,0.00020417,3]
[365143814,1749490232329,-366.09641915,0.0002059,3]
[365143815,1749490232339,-68.2069017,0.0002069,2]
[365143816,1749490232362,-102.91827907,0.0002069,2]
[365143817,1749490232374,-303.13535465,0.00020762,3]
[365143854,1749490240018,-368.67609564,0.00019498,2]
[365143855,1749490240029,-131.32390436,0.00019498,2]
[365143856,1749490240044,-500.0,0.00019498,2]
[365143857,1749490240054,-500.0,0.00019498,2]
[365143858,1749490240063,-500.0,0.00019498,2]
[365143859,1749490240072,-500.0,0.00019498,2]
[365143860,1749490240083,-500.0,0.00019498,2]
[365143861,1749490240092,-500.0,0.00019498,2]
[365143862,1749490240102,-365.49672964,0.00019498,2]
[365143863,1749490240112,-500.0,0.00019498,2]
[365143864,1749490240121,-500.0,0.00019498,2]
[365143865,1749490240132,-500.0,0.00019498,2]
[365143866,1749490240142,-500.0,0.00019498,2]
[365143867,1749490240151,-214.52707427,0.00019498,2]
[365143868,1749490240161,-500.0,0.00019498,2]
[365143869,1749490240171,-500.0,0.00019498,2]
[365143870,1749490240180,-500.0,0.00019498,2]
[365143872,1749490240190,-500.0,0.00019498,2]
[365143874,1749490240200,-368.13852271,0.00019498,2]
[365143875,1749490240210,-457.97883892,0.00019498,2]
[365143876,1749490240219,-500.0,0.00019498,2]
[365143877,1749490240229,-500.0,0.00019498,2]
[365143878,1749490240238,-500.0,0.00019498,2]
[365143879,1749490240247,-500.0,0.00019498,2]
[365143880,1749490240257,-500.0,0.00019498,2]
[365143881,1749490240267,-500.0,0.00019498,2]
[365143882,1749490240276,-500.0,0.00019498,2]
[365143883,1749490240285,-500.0,0.00019498,2]
[365143884,1749490240295,-500.0,0.00019498,2]
[365143885,1749490240305,-500.0,0.00019498,2]
[365143886,1749490240315,-500.0,0.00019498,2]
[365143887,1749490240324,-500.0,0.00019498,2]
[365143888,1749490240334,-500.0,0.00019498,2]
[365143889,1749490240343,-500.0,0.00019498,2]
[365143890,1749490240353,-500.0,0.00019498,2]
[365143891,1749490240362,-500.0,0.00019498,2]
[365143892,1749490240372,-500.0,0.00019498,2]
[365143893,1749490240383,-500.0,0.00019498,2]
[365143894,1749490240393,-500.0,0.00019498,2]
[365143895,1749490240402,-500.0,0.00019498,2]
[365143896,1749490240412,-444.87998812,0.00019498,2]
[365143897,1749490240421,-500.0,0.00019498,2]
[365143898,1749490240431,-500.0,0.00019498,2]
[365143899,1749490240441,-500.0,0.00019498,2]
[365143900,1749490240450,-500.0,0.00019498,2]
[365143901,1749490240460,-500.0,0.00019498,2]
[365143902,1749490240469,-500.0,0.00019498,2]
[365143903,1749490240479,-500.0,0.00019498,2]
[365143904,1749490240488,-500.0,0.00019498,2]
[365143905,1749490240499,-500.0,0.00019498,2]
[365143906,1749490240508,-500.0,0.00019498,2]
[365143907,1749490240518,-500.0,0.00019498,2]
[365143908,1749490240527,-500.0,0.00019498,2]
[365143909,1749490240537,-500.0,0.00019498,2]
[365143910,1749490240547,-500.0,0.00019498,2]
[365143911,1749490240556,-500.0,0.00019498,2]
[365143912,1749490240566,-500.0,0.00019498,2]
[365143913,1749490240576,-500.0,0.00019498,2]
[365143914,1749490240586,-242.72965472,0.00019498,2]
[365143915,1749490240596,-62.9610645,0.00020762,3]
[365143916,1749490240605,-366.09641915,0.00020934,4]
[365143917,1749490240615,-151.36739842,0.00020991,2]
[365143918,1749490240625,-155.31785965,0.00020991,2]
[365143919,1749490240635,-151.0,0.00020991,2]
[365143920,1749490240644,-421.88915428,0.00021095,4]
[365143921,1749490240654,-460.0,0.00021095,4]
[365143922,1749490240664,-440.0,0.00021095,4]
[365143923,1749490240674,-242.21395231,0.00021095,4]
[365143924,1749490240683,-460.0,0.00021095,2]
[365143925,1749490240693,-460.0,0.00021095,4]
[365143926,1749490240703,-1052.82,0.00021095,4]
[365143927,1749490240712,-460.0,0.00021095,4]
[365143928,1749490240722,-452.77383732,0.00021095,4]
[365143929,1749490240731,-499.64802173,0.00021095,4]
[365143930,1749490240741,-420.0,0.00021095,4]
[365143931,1749490240751,-460.0,0.00021095,4]
[365143932,1749490240761,-460.0,0.00021095,4]
[365143933,1749490240772,-460.0,0.00021095,4]
[365143934,1749490240782,-420.0,0.00021095,4]
[365143935,1749490240791,-460.0,0.00021095,4]
[365143936,1749490240801,-1178.3,0.00021095,4]
[365143937,1749490240811,-460.0,0.00021095,4]
[365143938,1749490240820,-1749.41,0.00021095,4]
[365143939,1749490240830,-730.99,0.00021095,4]
[365143940,1749490240839,-373.54989965,0.00021095,4]
[365143941,1749490240849,-588.43,0.00021095,4]
[365143942,1749490240859,-460.0,0.00021095,4]
[365143943,1749490240869,-460.0,0.00021095,4]
[365143944,1749490240879,-573.57,0.00021095,4]
[365143945,1749490240889,-460.0,0.00021095,4]
[365143946,1749490240899,-460.0,0.00021095,4]
[365143947,1749490240908,-460.0,0.00021095,4]
[365143948,1749490240918,-410.0,0.00021095,4]
[365143949,1749490240928,-460.0,0.00021095,4]
[365143950,1749490240937,-440.0,0.00021095,4]
[365143951,1749490240947,-460.0,0.00021095,4]
[365143952,1749490240957,-460.0,0.00021095,4]
[365143953,1749490240967,-440.0,0.00021095,4]
[365143954,1749490240976,-460.0,0.00021095,4]
[365143955,1749490240986,-792.22,0.00021095,4]
[365143956,1749490240995,-795.31,0.00021095,4]
[365143957,1749490241005,-460.0,0.00021095,4]
[365143958,1749490241015,-1029.53,0.00021095,4]
[365143959,1749490241024,-460.0,0.00021095,4]
[365143960,1749490241037,-440.0,0.00021095,4]
[365143961,1749490241046,-460.0,0.00021095,4]
[365143962,1749490241057,-460.0,0.00021095,4]
[365143963,1749490241066,-460.0,0.00021095,4]
[365143964,1749490241076,-337.84,0.00021095,4]
[365143965,1749490241086,-620.75,0.00021095,4]
[365143966,1749490241097,-460.0,0.00021095,4]
[365143967,1749490241107,-440.0,0.00021095,4]
[365143968,1749490241117,-460.0,0.00021095,4]
[365143969,1749490241128,-460.0,0.00021095,4]
[365143970,1749490241138,-966.52,0.00021095,4]
[365143971,1749490241148,-460.0,0.00021095,4]
[365143972,1749490241158,-2433.45,0.00021095,4]
[365143973,1749490241168,-665.8,0.00021095,4]
[365143974,1749490241178,-1817.04,0.00021095,4]
[365143975,1749490241187,-440.0,0.00021095,4]
[365143976,1749490241197,-460.0,0.00021095,4]
[365143977,1749490241207,-460.0,0.00021095,4]
[365143978,1749490241217,-525.62,0.00021095,4]
[365143979,1749490241227,-1673.02,0.00021095,4]
[365143980,1749490241237,-460.0,0.00021095,4]
[365143981,1749490241247,-722.8,0.00021095,4]
[365143982,1749490241257,-493.63,0.00021095,4]
[365143983,1749490241267,-460.0,0.00021095,4]
[365143984,1749490241277,-6655.49,0.00021095,4]
[365143985,1749490241287,-1550.29,0.00021095,4]
[365143986,1749490241297,-460.0,0.00021095,4]
[365143987,1749490241308,-440.0,0.00021095,4]
[365143988,1749490241318,-1589.82,0.00021095,4]
[365143989,1749490241329,-366.09641915,0.00021107,4]
[365143990,1749490241340,-399.34032157,0.00021128,2]
[365143991,1749490241350,-366.09641915,0.00021279,5]
[365143992,1749490241360,-382.78,0.00021359,3]
[365143993,1749490241370,-500.0,0.00021368,2]
[365143994,1749490241380,-500.0,0.00021368,2]
[365143995,1749490241390,-500.0,0.00021368,2]
[365143996,1749490241400,-500.0,0.00021368,2]
[365143997,1749490241410,-500.0,0.00021368,2]
[365143998,1749490241420,-271.57858343,0.00021368,2]
[365143999,1749490241429,-500.0,0.00021368,2]
[365144000,1749490241439,-500.0,0.00021368,2]
[365144001,1749490241449,-468.12373855,0.00021368,2]
[365144002,1749490241459,-500.0,0.00021368,2]
[365144003,1749490241468,-500.0,0.00021368,2]
[365144004,1749490241477,-500.0,0.00021368,2]
[365144005,1749490241487,-151.0,0.00021368,2]
[365144006,1749490241497,-151.0,0.00021368,2]
[365144007,1749490241507,-151.0,0.00021368,2]
[365144008,1749490241517,-151.0,0.00021369,2]
[365144009,1749490241527,-460.0,0.00021369,4]
[365144010,1749490241537,-1183.681302,0.00021369,2]
[365144011,1749490241547,-1183.681302,0.00021369,2]
[365144012,1749490241557,-244.740432,0.00021369,2]
[365144013,1749490241567,-216.645991,0.00021369,2]
[365144014,1749490241576,-460.0,0.00021369,2]
[365144015,1749490241586,-460.0,0.00021369,4]
[365144016,1749490241597,-151.0,0.00021369,2]
[365144017,1749490241606,-1052.82,0.00021369,4]
[365144018,1749490241616,-182.275575,0.00021369,2]
[365144019,1749490241626,-182.275575,0.00021369,2]
[365144020,1749490241636,-460.0,0.00021369,4]
[365144021,1749490241645,-151.0,0.00021369,2]
[365144022,1749490241655,-902.838213,0.00021369,2]
[365144023,1749490241665,-902.838213,0.00021369,2]
[365144024,1749490241779,-460.0,0.00021369,4]
[365144025,1749490241789,-460.0,0.00021369,4]
[365144026,1749490241799,-460.0,0.00021369,4]
[365144027,1749490241809,-151.0,0.00021369,2]
[365144028,1749490241819,-151.0,0.00021369,2]
[365144029,1749490241829,-1178.3,0.00021369,4]
[365144030,1749490241838,-460.0,0.00021369,4]
[365144031,1749490241848,-1749.41,0.00021369,4]
[365144032,1749490241858,-730.99,0.00021369,4]
[365144033,1749490241878,-166.01542,0.00021369,2]
[365144034,1749490241889,-588.43,0.00021369,4]
[365144035,1749490241901,-460.0,0.00021369,4]
[365144036,1749490241911,-460.0,0.00021369,4]
[365144037,1749490241921,-254.345354,0.00021369,2]
[365144038,1749490241931,-254.345354,0.00021369,2]
[365144039,1749490241941,-573.57,0.00021369,4]
[365144040,1749490241951,-460.0,0.00021369,4]
[365144041,1749490241961,-460.0,0.00021369,4]
[365144042,1749490241971,-460.0,0.00021369,4]
[365144043,1749490241981,-460.0,0.00021369,4]
[365144044,1749490241991,-460.0,0.00021369,4]